Workbook

Sheet Evidence
B2: Term: | C2: =$Q$6&" / "&CHOOSE(Q8,"January","February","March","April","May","June","July","August","September","October","November","December") -> 2023 / September | E2: Working hours evidence
B3: Name: | C3: =Holidays!E2 -> John Doe
B5: Day | C5: Week-day | D5: Type | E5: Start | F5: Safety break | G5: End of break | H5: End | I5: Description | J5: Note Pass | K5: 0 | L5: Weekly total | M5: Day total
A6: =IFERROR(_xlfn.XLOOKUP(DATE(YEAR(TEXT($B6&"/"&$Q$8&"/"&$Q$6,"dd.mm.rrrr")),MONTH(TEXT($B6&"/"&$Q$8&"/"&$Q$6,"dd.mm.rrrr")),DAY(TEXT($B6&"/"&$Q$8&"/"&$Q$6,"dd.mm.rrrr"))),StateHolidays[Date],StateHolidays[x],"",0,1),"") ->  | B6: 1 | C6: =CHOOSE(WEEKDAY($B6&"/" &$Q$8&"/" & $Q$6,2),"Mon","Tue","Wed","Thu","Fri","Sat","Sun") -> Fri | D6: Employment | E6: 09:00:00 | F6: 12:00:00 | G6: 12:30:00 | H6: 17:30:00 | I6: Job 1 | L6: =IF($N7<>$N6,SUMIFS($M$6:$M$36,$N$6:$N$36,$N6),"") ->  | M6: =IF(NOT(ISBLANK($E6)),IF(NOT(ISBLANK($H6)),($H6-$E6-($G6-$F6)),DailyHours[Daily hours]),) -> 0.3333333333 | N6: =IFERROR(WEEKNUM($B6&"/"&$Q$8&"/"&$Q$6,21),666) -> 35 | Q6: 2023 | R6: Year
A7: =IFERROR(_xlfn.XLOOKUP(DATE(YEAR(TEXT($B7&"/"&$Q$8&"/"&$Q$6,"dd.mm.rrrr")),MONTH(TEXT($B7&"/"&$Q$8&"/"&$Q$6,"dd.mm.rrrr")),DAY(TEXT($B7&"/"&$Q$8&"/"&$Q$6,"dd.mm.rrrr"))),StateHolidays[Date],StateHolidays[x],"",0,1),"") ->  | B7: 2 | C7: Sat | M7: =IF(NOT(ISBLANK($E7)),IF(NOT(ISBLANK($H7)),($H7-$E7-($G7-$F7)),DailyHours[Daily hours]),) -> 0 | N7: =IFERROR(WEEKNUM($B7&"/"&$Q$8&"/"&$Q$6,21),666) -> 35 | Q7: =DAY(NOW()) -> 16 | R7: Day (auto-calculated)
A8: =IFERROR(_xlfn.XLOOKUP(DATE(YEAR(TEXT($B8&"/"&$Q$8&"/"&$Q$6,"dd.mm.rrrr")),MONTH(TEXT($B8&"/"&$Q$8&"/"&$Q$6,"dd.mm.rrrr")),DAY(TEXT($B8&"/"&$Q$8&"/"&$Q$6,"dd.mm.rrrr"))),StateHolidays[Date],StateHolidays[x],"",0,1),"") ->  | B8: 3 | C8: Sun | L8: =IF($N9<>$N8,SUMIFS($M$6:$M$36,$N$6:$N$36,$N8),"") -> 0.3333333333 | M8: =IF(NOT(ISBLANK($E8)),IF(NOT(ISBLANK($H8)),($H8-$E8-($G8-$F8)),DailyHours[Daily hours]),) -> 0 | N8: 35 | Q8: 9 | R8: Month
A9: =IFERROR(_xlfn.XLOOKUP(DATE(YEAR(TEXT($B9&"/"&$Q$8&"/"&$Q$6,"dd.mm.rrrr")),MONTH(TEXT($B9&"/"&$Q$8&"/"&$Q$6,"dd.mm.rrrr")),DAY(TEXT($B9&"/"&$Q$8&"/"&$Q$6,"dd.mm.rrrr"))),StateHolidays[Date],StateHolidays[x],"",0,1),"") ->  | B9: 4 | C9: Mon | D9: Employment | E9: 09:00:00 | F9: 12:00:00 | G9: 12:30:00 | H9: 17:30:00 | I9: Job 2 | M9: =IF(NOT(ISBLANK($E9)),IF(NOT(ISBLANK($H9)),($H9-$E9-($G9-$F9)),DailyHours[Daily hours]),) -> 0.3333333333 | N9: 36
A10: =IFERROR(_xlfn.XLOOKUP(DATE(YEAR(TEXT($B10&"/"&$Q$8&"/"&$Q$6,"dd.mm.rrrr")),MONTH(TEXT($B10&"/"&$Q$8&"/"&$Q$6,"dd.mm.rrrr")),DAY(TEXT($B10&"/"&$Q$8&"/"&$Q$6,"dd.mm.rrrr"))),StateHolidays[Date],StateHolidays[x],"",0,1),"") ->  | B10: 5 | C10: Tue | D10: Employment | E10: 09:00:00 | F10: 12:00:00 | G10: 12:30:00 | H10: 17:30:00 | I10: Job 3 | M10: =IF(NOT(ISBLANK($E10)),IF(NOT(ISBLANK($H10)),($H10-$E10-($G10-$F10)),DailyHours[Daily hours]),) -> 0.3333333333 | N10: 36 | S10: Updates the count of days in a month. It will erase the entire calendar and the dates within. Hides non-existent days in the month.
A11: =IFERROR(_xlfn.XLOOKUP(DATE(YEAR(TEXT($B11&"/"&$Q$8&"/"&$Q$6,"dd.mm.rrrr")),MONTH(TEXT($B11&"/"&$Q$8&"/"&$Q$6,"dd.mm.rrrr")),DAY(TEXT($B11&"/"&$Q$8&"/"&$Q$6,"dd.mm.rrrr"))),StateHolidays[Date],StateHolidays[x],"",0,1),"") ->  | B11: 6 | C11: Wed | D11: Employment | E11: 09:00:00 | F11: 12:00:00 | G11: 12:30:00 | H11: 17:30:00 | I11: Job 4 | M11: =IF(NOT(ISBLANK($E11)),IF(NOT(ISBLANK($H11)),($H11-$E11-($G11-$F11)),DailyHours[Daily hours]),) -> 0.3333333333 | N11: 36
A12: =IFERROR(_xlfn.XLOOKUP(DATE(YEAR(TEXT($B12&"/"&$Q$8&"/"&$Q$6,"dd.mm.rrrr")),MONTH(TEXT($B12&"/"&$Q$8&"/"&$Q$6,"dd.mm.rrrr")),DAY(TEXT($B12&"/"&$Q$8&"/"&$Q$6,"dd.mm.rrrr"))),StateHolidays[Date],StateHolidays[x],"",0,1),"") ->  | B12: 7 | C12: Thu | D12: Employment | E12: 09:00:00 | F12: 12:00:00 | G12: 12:30:00 | H12: 17:30:00 | I12: Job 5 | M12: =IF(NOT(ISBLANK($E12)),IF(NOT(ISBLANK($H12)),($H12-$E12-($G12-$F12)),DailyHours[Daily hours]),) -> 0.3333333333 | N12: 36
A13: =IFERROR(_xlfn.XLOOKUP(DATE(YEAR(TEXT($B13&"/"&$Q$8&"/"&$Q$6,"dd.mm.rrrr")),MONTH(TEXT($B13&"/"&$Q$8&"/"&$Q$6,"dd.mm.rrrr")),DAY(TEXT($B13&"/"&$Q$8&"/"&$Q$6,"dd.mm.rrrr"))),StateHolidays[Date],StateHolidays[x],"",0,1),"") ->  | B13: 8 | C13: Fri | D13: Employment | E13: 09:00:00 | F13: 12:00:00 | G13: 12:30:00 | H13: 17:30:00 | I13: Job 6 | M13: =IF(NOT(ISBLANK($E13)),IF(NOT(ISBLANK($H13)),($H13-$E13-($G13-$F13)),DailyHours[Daily hours]),) -> 0.3333333333 | N13: 36
A14: =IFERROR(_xlfn.XLOOKUP(DATE(YEAR(TEXT($B14&"/"&$Q$8&"/"&$Q$6,"dd.mm.rrrr")),MONTH(TEXT($B14&"/"&$Q$8&"/"&$Q$6,"dd.mm.rrrr")),DAY(TEXT($B14&"/"&$Q$8&"/"&$Q$6,"dd.mm.rrrr"))),StateHolidays[Date],StateHolidays[x],"",0,1),"") ->  | B14: 9 | C14: Sat | M14: =IF(NOT(ISBLANK($E14)),IF(NOT(ISBLANK($H14)),($H14-$E14-($G14-$F14)),DailyHours[Daily hours]),) -> 0 | N14: 36 | S14: Prints the completed sheet to a PDF file in the path (configuration in the Holidays sheet). It will also open the PDF file.
A15: =IFERROR(_xlfn.XLOOKUP(DATE(YEAR(TEXT($B15&"/"&$Q$8&"/"&$Q$6,"dd.mm.rrrr")),MONTH(TEXT($B15&"/"&$Q$8&"/"&$Q$6,"dd.mm.rrrr")),DAY(TEXT($B15&"/"&$Q$8&"/"&$Q$6,"dd.mm.rrrr"))),StateHolidays[Date],StateHolidays[x],"",0,1),"") ->  | B15: 10 | C15: Sun | L15: 1.666666667 | M15: =IF(NOT(ISBLANK($E15)),IF(NOT(ISBLANK($H15)),($H15-$E15-($G15-$F15)),DailyHours[Daily hours]),) -> 0 | N15: 36
A16: =IFERROR(_xlfn.XLOOKUP(DATE(YEAR(TEXT($B16&"/"&$Q$8&"/"&$Q$6,"dd.mm.rrrr")),MONTH(TEXT($B16&"/"&$Q$8&"/"&$Q$6,"dd.mm.rrrr")),DAY(TEXT($B16&"/"&$Q$8&"/"&$Q$6,"dd.mm.rrrr"))),StateHolidays[Date],StateHolidays[x],"",0,1),"") ->  | B16: 11 | C16: Mon | D16: Sick-Day | E16: 09:00:00 | H16: 17:30:00 | I16: Flu | M16: =IF(NOT(ISBLANK($E16)),IF(NOT(ISBLANK($H16)),($H16-$E16-($G16-$F16)),DailyHours[Daily hours]),) -> 0.3541666667 | N16: 37
A17: =IFERROR(_xlfn.XLOOKUP(DATE(YEAR(TEXT($B17&"/"&$Q$8&"/"&$Q$6,"dd.mm.rrrr")),MONTH(TEXT($B17&"/"&$Q$8&"/"&$Q$6,"dd.mm.rrrr")),DAY(TEXT($B17&"/"&$Q$8&"/"&$Q$6,"dd.mm.rrrr"))),StateHolidays[Date],StateHolidays[x],"",0,1),"") ->  | B17: 12 | C17: Tue | D17: Pass | E17: 09:00:00 | H17: 10:15:00 | I17: Job 10 | J17: Dentist | M17: =IF(NOT(ISBLANK($E17)),IF(NOT(ISBLANK($H17)),($H17-$E17-($G17-$F17)),DailyHours[Daily hours]),) -> 0.05208333333 | N17: 37
A18: =IFERROR(_xlfn.XLOOKUP(DATE(YEAR(TEXT($B18&"/"&$Q$8&"/"&$Q$6,"dd.mm.rrrr")),MONTH(TEXT($B18&"/"&$Q$8&"/"&$Q$6,"dd.mm.rrrr")),DAY(TEXT($B18&"/"&$Q$8&"/"&$Q$6,"dd.mm.rrrr"))),StateHolidays[Date],StateHolidays[x],"",0,1),"") ->  | B18: 13 | C18: Wed | D18: Employment | E18: 09:00:00 | F18: 12:00:00 | G18: 12:30:00 | H18: 17:30:00 | I18: Job 11 | M18: =IF(NOT(ISBLANK($E18)),IF(NOT(ISBLANK($H18)),($H18-$E18-($G18-$F18)),DailyHours[Daily hours]),) -> 0.3333333333 | N18: 37
A19: =IFERROR(_xlfn.XLOOKUP(DATE(YEAR(TEXT($B19&"/"&$Q$8&"/"&$Q$6,"dd.mm.rrrr")),MONTH(TEXT($B19&"/"&$Q$8&"/"&$Q$6,"dd.mm.rrrr")),DAY(TEXT($B19&"/"&$Q$8&"/"&$Q$6,"dd.mm.rrrr"))),StateHolidays[Date],StateHolidays[x],"",0,1),"") ->  | B19: 14 | C19: Thu | D19: Employment | E19: 09:00:00 | F19: 12:00:00 | G19: 12:30:00 | H19: 17:30:00 | I19: Job 12 | M19: =IF(NOT(ISBLANK($E19)),IF(NOT(ISBLANK($H19)),($H19-$E19-($G19-$F19)),DailyHours[Daily hours]),) -> 0.3333333333 | N19: 37
A20: =IFERROR(_xlfn.XLOOKUP(DATE(YEAR(TEXT($B20&"/"&$Q$8&"/"&$Q$6,"dd.mm.rrrr")),MONTH(TEXT($B20&"/"&$Q$8&"/"&$Q$6,"dd.mm.rrrr")),DAY(TEXT($B20&"/"&$Q$8&"/"&$Q$6,"dd.mm.rrrr"))),StateHolidays[Date],StateHolidays[x],"",0,1),"") ->  | B20: 15 | C20: Fri | D20: Caring for a family member | E20: 09:00:00 | H20: 17:30:00 | I20: Children at doctor | M20: =IF(NOT(ISBLANK($E20)),IF(NOT(ISBLANK($H20)),($H20-$E20-($G20-$F20)),DailyHours[Daily hours]),) -> 0.3541666667 | N20: 37
A21: =IFERROR(_xlfn.XLOOKUP(DATE(YEAR(TEXT($B21&"/"&$Q$8&"/"&$Q$6,"dd.mm.rrrr")),MONTH(TEXT($B21&"/"&$Q$8&"/"&$Q$6,"dd.mm.rrrr")),DAY(TEXT($B21&"/"&$Q$8&"/"&$Q$6,"dd.mm.rrrr"))),StateHolidays[Date],StateHolidays[x],"",0,1),"") ->  | B21: 16 | C21: Sat | M21: =IF(NOT(ISBLANK($E21)),IF(NOT(ISBLANK($H21)),($H21-$E21-($G21-$F21)),DailyHours[Daily hours]),) -> 0 | N21: 37
A22: =IFERROR(_xlfn.XLOOKUP(DATE(YEAR(TEXT($B22&"/"&$Q$8&"/"&$Q$6,"dd.mm.rrrr")),MONTH(TEXT($B22&"/"&$Q$8&"/"&$Q$6,"dd.mm.rrrr")),DAY(TEXT($B22&"/"&$Q$8&"/"&$Q$6,"dd.mm.rrrr"))),StateHolidays[Date],StateHolidays[x],"",0,1),"") ->  | B22: 17 | C22: Sun | L22: 1.427083333 | M22: =IF(NOT(ISBLANK($E22)),IF(NOT(ISBLANK($H22)),($H22-$E22-($G22-$F22)),DailyHours[Daily hours]),) -> 0 | N22: 37
A23: =IFERROR(_xlfn.XLOOKUP(DATE(YEAR(TEXT($B23&"/"&$Q$8&"/"&$Q$6,"dd.mm.rrrr")),MONTH(TEXT($B23&"/"&$Q$8&"/"&$Q$6,"dd.mm.rrrr")),DAY(TEXT($B23&"/"&$Q$8&"/"&$Q$6,"dd.mm.rrrr"))),StateHolidays[Date],StateHolidays[x],"",0,1),"") ->  | B23: 18 | C23: Mon | D23: Employment | E23: 09:00:00 | F23: 12:00:00 | G23: 12:30:00 | H23: 17:30:00 | I23: Job 16 | M23: =IF(NOT(ISBLANK($E23)),IF(NOT(ISBLANK($H23)),($H23-$E23-($G23-$F23)),DailyHours[Daily hours]),) -> 0.3333333333 | N23: 38
A24: =IFERROR(_xlfn.XLOOKUP(DATE(YEAR(TEXT($B24&"/"&$Q$8&"/"&$Q$6,"dd.mm.rrrr")),MONTH(TEXT($B24&"/"&$Q$8&"/"&$Q$6,"dd.mm.rrrr")),DAY(TEXT($B24&"/"&$Q$8&"/"&$Q$6,"dd.mm.rrrr"))),StateHolidays[Date],StateHolidays[x],"",0,1),"") ->  | B24: 19 | C24: Tue | D24: Employment | E24: 09:00:00 | F24: 12:00:00 | G24: 12:30:00 | H24: 17:30:00 | I24: Job 17 | M24: =IF(NOT(ISBLANK($E24)),IF(NOT(ISBLANK($H24)),($H24-$E24-($G24-$F24)),DailyHours[Daily hours]),) -> 0.3333333333 | N24: 38
A25: =IFERROR(_xlfn.XLOOKUP(DATE(YEAR(TEXT($B25&"/"&$Q$8&"/"&$Q$6,"dd.mm.rrrr")),MONTH(TEXT($B25&"/"&$Q$8&"/"&$Q$6,"dd.mm.rrrr")),DAY(TEXT($B25&"/"&$Q$8&"/"&$Q$6,"dd.mm.rrrr"))),StateHolidays[Date],StateHolidays[x],"",0,1),"") ->  | B25: 20 | C25: Wed | D25: Illness | E25: 09:00:00 | H25: 17:00:00 | I25: Vaccination impact | M25: =IF(NOT(ISBLANK($E25)),IF(NOT(ISBLANK($H25)),($H25-$E25-($G25-$F25)),DailyHours[Daily hours]),) -> 0.3333333333 | N25: 38
A26: =IFERROR(_xlfn.XLOOKUP(DATE(YEAR(TEXT($B26&"/"&$Q$8&"/"&$Q$6,"dd.mm.rrrr")),MONTH(TEXT($B26&"/"&$Q$8&"/"&$Q$6,"dd.mm.rrrr")),DAY(TEXT($B26&"/"&$Q$8&"/"&$Q$6,"dd.mm.rrrr"))),StateHolidays[Date],StateHolidays[x],"",0,1),"") ->  | B26: 21 | C26: Thu | D26: Employment | E26: 09:00:00 | F26: 12:00:00 | G26: 12:30:00 | H26: 17:30:00 | I26: Job 19 | M26: =IF(NOT(ISBLANK($E26)),IF(NOT(ISBLANK($H26)),($H26-$E26-($G26-$F26)),DailyHours[Daily hours]),) -> 0.3333333333 | N26: 38
A27: =IFERROR(_xlfn.XLOOKUP(DATE(YEAR(TEXT($B27&"/"&$Q$8&"/"&$Q$6,"dd.mm.rrrr")),MONTH(TEXT($B27&"/"&$Q$8&"/"&$Q$6,"dd.mm.rrrr")),DAY(TEXT($B27&"/"&$Q$8&"/"&$Q$6,"dd.mm.rrrr"))),StateHolidays[Date],StateHolidays[x],"",0,1),"") ->  | B27: 22 | C27: Fri | D27: Employment | E27: 09:00:00 | F27: 12:00:00 | G27: 12:30:00 | H27: 17:30:00 | I27: Job 20 | M27: =IF(NOT(ISBLANK($E27)),IF(NOT(ISBLANK($H27)),($H27-$E27-($G27-$F27)),DailyHours[Daily hours]),) -> 0.3333333333 | N27: 38
A28: =IFERROR(_xlfn.XLOOKUP(DATE(YEAR(TEXT($B28&"/"&$Q$8&"/"&$Q$6,"dd.mm.rrrr")),MONTH(TEXT($B28&"/"&$Q$8&"/"&$Q$6,"dd.mm.rrrr")),DAY(TEXT($B28&"/"&$Q$8&"/"&$Q$6,"dd.mm.rrrr"))),StateHolidays[Date],StateHolidays[x],"",0,1),"") ->  | B28: 23 | C28: Sat | M28: =IF(NOT(ISBLANK($E28)),IF(NOT(ISBLANK($H28)),($H28-$E28-($G28-$F28)),DailyHours[Daily hours]),) -> 0 | N28: 38
A29: =IFERROR(_xlfn.XLOOKUP(DATE(YEAR(TEXT($B29&"/"&$Q$8&"/"&$Q$6,"dd.mm.rrrr")),MONTH(TEXT($B29&"/"&$Q$8&"/"&$Q$6,"dd.mm.rrrr")),DAY(TEXT($B29&"/"&$Q$8&"/"&$Q$6,"dd.mm.rrrr"))),StateHolidays[Date],StateHolidays[x],"",0,1),"") ->  | B29: 24 | C29: Sun | L29: =IF($N30<>$N29,SUMIFS($M$6:$M$36,$N$6:$N$36,$N29),"") -> 1.666666667 | M29: =IF(NOT(ISBLANK($E29)),IF(NOT(ISBLANK($H29)),($H29-$E29-($G29-$F29)),DailyHours[Daily hours]),) -> 0 | N29: 38
A30: =IFERROR(_xlfn.XLOOKUP(DATE(YEAR(TEXT($B30&"/"&$Q$8&"/"&$Q$6,"dd.mm.rrrr")),MONTH(TEXT($B30&"/"&$Q$8&"/"&$Q$6,"dd.mm.rrrr")),DAY(TEXT($B30&"/"&$Q$8&"/"&$Q$6,"dd.mm.rrrr"))),StateHolidays[Date],StateHolidays[x],"",0,1),"") ->  | B30: 25 | C30: Mon | D30: Business trip | E30: 09:00:00 | F30: 12:00:00 | G30: 12:30:00 | H30: 16:00:00 | I30: At Brno branch for training | M30: =IF(NOT(ISBLANK($E30)),IF(NOT(ISBLANK($H30)),($H30-$E30-($G30-$F30)),DailyHours[Daily hours]),) -> 0.2708333333 | N30: 39
A31: =IFERROR(_xlfn.XLOOKUP(DATE(YEAR(TEXT($B31&"/"&$Q$8&"/"&$Q$6,"dd.mm.rrrr")),MONTH(TEXT($B31&"/"&$Q$8&"/"&$Q$6,"dd.mm.rrrr")),DAY(TEXT($B31&"/"&$Q$8&"/"&$Q$6,"dd.mm.rrrr"))),StateHolidays[Date],StateHolidays[x],"",0,1),"") ->  | B31: 26 | C31: Tue | D31: An obstacle on employer side | E31: 09:00:00 | H31: 17:30:00 | I31: Internet down | M31: =IF(NOT(ISBLANK($E31)),IF(NOT(ISBLANK($H31)),($H31-$E31-($G31-$F31)),DailyHours[Daily hours]),) -> 0.3541666667 | N31: 39
A32: =IFERROR(_xlfn.XLOOKUP(DATE(YEAR(TEXT($B32&"/"&$Q$8&"/"&$Q$6,"dd.mm.rrrr")),MONTH(TEXT($B32&"/"&$Q$8&"/"&$Q$6,"dd.mm.rrrr")),DAY(TEXT($B32&"/"&$Q$8&"/"&$Q$6,"dd.mm.rrrr"))),StateHolidays[Date],StateHolidays[x],"",0,1),"") ->  | B32: 27 | C32: Wed | D32: Holiday | E32: 09:00:00 | H32: 17:00:00 | M32: =IF(NOT(ISBLANK($E32)),IF(NOT(ISBLANK($H32)),($H32-$E32-($G32-$F32)),DailyHours[Daily hours]),) -> 0.3333333333 | N32: 39
A33: =IFERROR(_xlfn.XLOOKUP(DATE(YEAR(TEXT($B33&"/"&$Q$8&"/"&$Q$6,"dd.mm.rrrr")),MONTH(TEXT($B33&"/"&$Q$8&"/"&$Q$6,"dd.mm.rrrr")),DAY(TEXT($B33&"/"&$Q$8&"/"&$Q$6,"dd.mm.rrrr"))),StateHolidays[Date],StateHolidays[x],"",0,1),"") -> . | B33: 28 | C33: Thu | D33: State Holiday | E33: 09:00:00 | F33: 10:15:00 | G33: 10:45:00 | H33: 11:35:00 | I33: Job 13 | M33: =IF(NOT(ISBLANK($E33)),IF(NOT(ISBLANK($H33)),($H33-$E33-($G33-$F33)),DailyHours[Daily hours]),) -> 0.08680555556 | N33: 39
A34: =IFERROR(_xlfn.XLOOKUP(DATE(YEAR(TEXT($B34&"/"&$Q$8&"/"&$Q$6,"dd.mm.rrrr")),MONTH(TEXT($B34&"/"&$Q$8&"/"&$Q$6,"dd.mm.rrrr")),DAY(TEXT($B34&"/"&$Q$8&"/"&$Q$6,"dd.mm.rrrr"))),StateHolidays[Date],StateHolidays[x],"",0,1),"") ->  | B34: 29 | C34: Fri | D34: Holiday | E34: 09:00:00 | H34: 17:00:00 | M34: =IF(NOT(ISBLANK($E34)),IF(NOT(ISBLANK($H34)),($H34-$E34-($G34-$F34)),DailyHours[Daily hours]),) -> 0.3333333333 | N34: 39
A35: =IFERROR(_xlfn.XLOOKUP(DATE(YEAR(TEXT($B35&"/"&$Q$8&"/"&$Q$6,"dd.mm.rrrr")),MONTH(TEXT($B35&"/"&$Q$8&"/"&$Q$6,"dd.mm.rrrr")),DAY(TEXT($B35&"/"&$Q$8&"/"&$Q$6,"dd.mm.rrrr"))),StateHolidays[Date],StateHolidays[x],"",0,1),"") ->  | B35: 30 | C35: Sat | L35: 1.378472222 | M35: =IF(NOT(ISBLANK($E35)),IF(NOT(ISBLANK($H35)),($H35-$E35-($G35-$F35)),DailyHours[Daily hours]),) -> 0 | N35: 39 | Q35: =IFERROR(IF($C34=TEXT("Sun","#"),SUMIFS($M$6:$M$36,$N$6:$N$36,$N34,$D$6:$D$36,"Employment"),""),"") -> 
A36: =IFERROR(_xlfn.XLOOKUP(DATE(YEAR(TEXT($B36&"/"&$Q$8&"/"&$Q$6,"dd.mm.rrrr")),MONTH(TEXT($B36&"/"&$Q$8&"/"&$Q$6,"dd.mm.rrrr")),DAY(TEXT($B36&"/"&$Q$8&"/"&$Q$6,"dd.mm.rrrr"))),StateHolidays[Date],StateHolidays[x],"",0,1),"") ->  | B36: 31 | L36: 0 | M36: =IF(NOT(ISBLANK($E36)),IF(NOT(ISBLANK($H36)),($H36-$E36-($G36-$F36)),DailyHours[Daily hours]),) -> 0 | N36: 666
D38: Total Worked: | E38: =SUMIFS($M$6:$M$36,MonthlyEvidence[Type],"Employment",$N$6:$N$36,"<55") -> 4 | I38: Obstacle at the employer: | J38: =SUMIFS($M$6:$M$36,MonthlyEvidence[Type],"An obstacle on employer side",$N$6:$N$36,"<55") -> 0.3541666667
D39: Pass: | E39: =SUMIFS($M$6:$M$36,MonthlyEvidence[Type],"Pass",$N$6:$N$36,"<55") -> 0.05208333333 | I39: Business trip: | J39: =SUMIFS($M$6:$M$36,MonthlyEvidence[Type],"Business trip",$N$6:$N$36,"<55") -> 0.2708333333
D40: Holiday: | E40: =SUMIFS($M$6:$M$36,MonthlyEvidence[Type],"Holiday",$N$6:$N$36,"<55") -> 0.6666666667 | I40: State holiday: | J40: =SUMIFS($M$6:$M$36,MonthlyEvidence[Type],"State Holiday",$N$6:$N$36,"<55") -> 0.08680555556
D41: Sick-day: | E41: =SUMIFS($M$6:$M$36,MonthlyEvidence[Type],"Sick-Day",$N$6:$N$36,"<55") -> 0.3541666667 | I41: Illness | J41: =SUMIFS($M$6:$M$36,MonthlyEvidence[Type],"Illness",$N$6:$N$36,"<55") -> 0.3333333333
D42: CFM: | E42: =SUMIFS($M$6:$M$36,MonthlyEvidence[Type],"Caring for a family member",$N$6:$N$36,"<55") -> 0.3541666667 | I42: Total for employer: | J42: =SUM(SUMIFS($M$6:$M$36,MonthlyEvidence[Type],{"Employment";"Sick-Day";"Pass";"Illness";"Caring for a family member";"Business trip";"An obstacle on employer side";"State Holiday"},$N$6:$N$36,"<55")) -> 5.805555556
D44: Extraordinary reward: | I44: Annual remuneration:
D45: Performance Reward: | I45: Precipitation:
D49: =IF(_xlfn.XLOOKUP(Evidence!$E$50,EmployeeManager[[#All],[Names]],EmployeeManager[[#All],[Position]],"Podpis:")="employee","Employee's signature:","Line manager's signature:") -> Employee's signature: | I49: =IF(_xlfn.XLOOKUP(Evidence!$J$50,EmployeeManager[[#All],[Names]],EmployeeManager[[#All],[Position]],"Podpis:")="employee","Employee signature:","Line manager's signature:") -> Line manager's signature:
E50: =Holidays!$E$2 -> John Doe | J50: =Holidays!$E$3 -> Rob Netie
O51: A1:N50 range will be printed to PDF file. Nothing outside of the range will be in the printout.
O52: The name of the employee and employee's Line manager can be changed in the Holidays worksheet.
O53: Do not change anything in the columns A, B, C, L, M, or N, there are formulas for calculations. ¯\_(ツ)_/¯

Sheet Holidays
A1: Date | B1: State Holiday | C1: x | E1: Names | F1: Position | J1: Activity type
A2: =DATE(YEAR(TODAY())-1,1,1) -> 2023-01-01 | B2: Nový rok | C2: . | E2: John Doe | F2: employee | J2: Employment
A3: =(DOLLAR(("4/"&YEAR(TODAY())-1)/7+MOD(19*MOD(YEAR(TODAY())-1,19)-7,30)*14%,)*7-6)-2 -> 2023-04-07 | B3: Velký pátek | C3: . | E3: Rob Netie | F3: line manager | J3: State Holiday
A4: =(DOLLAR(("4/"&YEAR(TODAY())-1)/7+MOD(19*MOD(YEAR(TODAY())-1,19)-7,30)*14%,)*7-6)+1 -> 2023-04-10 | B4: Velikonoční pondělí | C4: . | J4: Business trip
A5: =DATE(YEAR(TODAY())-1,5,1) -> 2023-05-01 | B5: Svátek práce | C5: . | J5: Sick-Day
A6: =DATE(YEAR(TODAY())-1,5,8) -> 2023-05-08 | B6: Den osvobození ČSR | C6: . | E6: Daily hours | J6: An obstacle on employer side
A7: =DATE(YEAR(TODAY())-1,7,5) -> 2023-07-05 | B7: Den slovanských věrozvěstů Cyrila a Metoděje | C7: . | E7: 0.3333333333 | J7: Pass
A8: =DATE(YEAR(TODAY())-1,7,6) -> 2023-07-06 | B8: Den upálení mistra Jana Husa | C8: . | J8: Caring for a family member
A9: =DATE(YEAR(TODAY())-1,9,28) -> 2023-09-28 | B9: Den české státnosti | C9: . | J9: Illness
A10: =DATE(YEAR(TODAY())-1,10,28) -> 2023-10-28 | B10: Den vzniku samostatného československého státu | C10: . | J10: Holiday
A11: =DATE(YEAR(TODAY())-1,11,17) -> 2023-11-17 | B11: Den boje za svobodu a demokracii | C11: .
A12: =DATE(YEAR(TODAY())-1,12,24) -> 2023-12-24 | B12: Štědrý den | C12: .
A13: =DATE(YEAR(TODAY())-1,12,25) -> 2023-12-25 | B13: 1. svátek vánoční (Boží hod) | C13: .
A14: =DATE(YEAR(TODAY())-1,12,26) -> 2023-12-26 | B14: 2. svátek vánoční | C14: .
A15: =DATE(YEAR(TODAY()),1,1) -> 2024-01-01 | B15: Nový rok | C15: .
A16: =(DOLLAR(("4/"&YEAR(TODAY()))/7+MOD(19*MOD(YEAR(TODAY()),19)-7,30)*14%,)*7-6)-2 -> 2024-03-29 | B16: Velký pátek | C16: .
A17: =(DOLLAR(("4/"&YEAR(TODAY()))/7+MOD(19*MOD(YEAR(TODAY()),19)-7,30)*14%,)*7-6)+1 -> 2024-04-01 | B17: Velikonoční pondělí | C17: .
A18: =DATE(YEAR(TODAY()),5,1) -> 2024-05-01 | B18: Svátek práce | C18: . | E18: Automatic path to exported files | G18: 2 | H18: 3 | I18: 4 | J18: 5 | K18: 6 | L18: 7 | M18: 8
A19: =DATE(YEAR(TODAY()),5,8) -> 2024-05-08 | B19: Den osvobození ČSR | C19: . | E19: =LEFT(CELL("filename",A1),FIND("[",CELL("filename",A1))-1) -> C:\_DEV\Excel\
A20: =DATE(YEAR(TODAY()),7,5) -> 2024-07-05 | B20: Den slovanských věrozvěstů Cyrila a Metoděje | C20: .
A21: =DATE(YEAR(TODAY()),7,6) -> 2024-07-06 | B21: Den upálení mistra Jana Husa | C21: .
A22: =DATE(YEAR(TODAY()),9,28) -> 2024-09-28 | B22: Den české státnosti | C22: .
A23: =DATE(YEAR(TODAY()),10,28) -> 2024-10-28 | B23: Den vzniku samostatného československého státu | C23: .
A24: =DATE(YEAR(TODAY()),11,17) -> 2024-11-17 | B24: Den boje za svobodu a demokracii | C24: .
A25: =DATE(YEAR(TODAY()),12,24) -> 2024-12-24 | B25: Štědrý den | C25: .
A26: =DATE(YEAR(TODAY()),12,25) -> 2024-12-25 | B26: 1. svátek vánoční (Boží hod) | C26: .
A27: =DATE(YEAR(TODAY()),12,26) -> 2024-12-26 | B27: 2. svátek vánoční | C27: .
